Cogmind - Beta 14 @@@ ROGUE MODE // 2025.01.14 @ 14:52:41 Player: Doobadoop Result: Destroyed by EMP Trap Performance ------------- Evolutions (0) 0 Regions Visited (1) 200 Robots Destroyed (38) 190 Value Destroyed (533) 533 Prototype IDs (0) 0 Alien Tech Used (0) 0 Bonus (0) 0 TOTAL SCORE: 923 Bonus ------- None Cogmind --------- Core Integrity 0/250 Matter 300/300 Energy 158/160 System Corruption 0% Temperature Cool (1) Movement Treading (160) Location -10/Materials Parts ------- > --- POWER (1) -------- Light Nuclear Core > --- PROPULSION (2) --- Light Treads > --- UTILITY (2) ------ Heat Sink Transport Network Coupler > --- WEAPON (2) ------- Medium Laser Small Laser > --- INVENTORY (5) ---- Small Storage Unit Small Matter Pod (50) Seismic Detector Peak State ------------ > --- POWER ------------ Ion Engine > --- PROPULSION ------- Aluminum Leg Aluminum Leg > --- UTILITY ---------- Heat Sink Small Storage Unit > --- WEAPON ----------- Assault Rifle Assault Rifle > --- INVENTORY -------- Ion Engine Light Nuclear Core Aluminum Leg Aluminum Leg Aluminum Leg Medium Laser Small Laser Particle Gun [Rating: 8] Favorites ----------- Power Ion Engine Engine Ion Engine Power Core Light Nuclear Core Propulsion Aluminum Leg Treads Light Treads Leg Aluminum Leg Wheel Wheel Flight Unit Flight Unit Utility Small Storage Unit Device Heat Sink Storage Small Storage Unit Processor Transport Network Coupler Weapon Small Laser Energy Gun Small Laser Ballistic Gun Assault Rifle Build | -11 -10 ------- Run | Yrd Mat Slots Evolved . | . . Power . | . . Propulsion . | . . Utility . | . . Weapon . | . . Parts Attached 23 | 7 16 Power 4 | 1 3 Engine 3 | 1 2 Core 1 | . 1 Reactor . | . . Propulsion 8 | 2 6 Treads 1 | . 1 Leg 3 | . 3 Wheel 2 | 2 . Hover . | . . Flight 2 | . 2 Utility 6 | 1 5 Device 4 | . 4 Storage 1 | 1 . Processor 1 | . 1 Hackware . | . . Protection . | . . Artifact . | . . Weapon 5 | 3 2 Energy Gun 3 | 1 2 Energy Cannon . | . . Ballistic Gun 2 | 2 . Ballistic Cannon . | . . Launcher . | . . Special Weapon . | . . Impact Weapon . | . . Slashing Weapon . | . . Piercing Weapon . | . . Special Melee Weapon . | . . Unidentified Prototypes . | . . Parts Lost 3 | . 3 Power . | . . Propulsion 1 | . 1 Utility . | . . Weapon 2 | . 2 Highest Loss Streak 2 | . 2 To Critical Strikes . | . . Average Slot Usage (%) 91 | . 91 Engine 11 | . 11 Core 2 | . 2 Treads 2 | . 2 Leg 12 | . 12 Wheel 4 | . 4 Flight 6 | . 6 Device 11 | . 11 Storage 8 | . 8 Processor 3 | . 3 Energy Gun 20 | . 20 Ballistic Gun 7 | . 7 Peak Build Rating 8 | 6 8 Average Rating 6 | 4 6 On Entrance 3 | . 6 Naked Turns . | . . Heaviest Build 15 | 14 15 Greatest Support 20 | 20 20 Greatest Overweight (x) 1 | . 1 Average Overweight (x) . | . . Largest Inventory Capacity 8 | 8 8 Average Capacity 6 | 6 6 Most Carried 8 | 4 8 Average Carried 5 | 2 5 Final Capacity 8 | 8 5 Final Carried 4 | 4 3 Class Distribution -------------------- 61% | Mutant 38% | Scavenger-Mutant Dominant Class ---------------- Mutant | -10/Materials Resources | -11 -10 ----------- Run | Yrd Mat Matter Collected 699 | 203 496 Remotely . | . . Salvage Created 1167 | . 1167 Parts 86 | . 86 Haulers Intercepted 2 | . 2 Recyclers Shooed 4 | . 4 Parts Field Recycled . | . . Retrieved Matter . | . . Parts Self-Destructed . | . . Prevented . | . . Kills | -11 -10 ------- Run | Yrd Mat Combat Hostiles Destroyed 15 | . 15 Guns 15 | . 15 Classes Destroyed 9 | . 9 Worker 10 | . 10 Builder 4 | . 4 Tunneler 1 | . 1 Hauler 2 | . 2 Recycler 2 | . 2 Operator 1 | . 1 Watcher 3 | . 3 Swarmer 5 | . 5 Grunt 10 | . 10 Best Kill Streak 5 | . 5 Combat Bots Only 3 | . 3 Max Kills in Single Turn 2 | . 2 Gunslinging 1 | . 1 Exploded . | . . Melee . | . . Uniques/NPCs Destroyed . | . . Combat | -11 -10 -------- Run | Yrd Mat Hostile Shots Fired 109 | . 109 Missed 27 | . 27 Damage Taken 927 | . 927 Core 252 | . 252 Absorbed by Shields . | . . Core Remaining (%) 100 | 100 . Volleys Fired 111 | . 111 Largest 2 | . 2 Hottest 90 | . 90 Shots Fired 219 | . 219 Gun 219 | . 219 Cannon . | . . Launcher . | . . Special . | . . Kinetic 78 | . 78 Thermal 141 | . 141 Explosive . | . . Electromagnetic . | . . Robot Hit Streak 13 | . 13 Robot Miss Streak 4 | . 4 Penetration Max . | . . Secondary Targets 1 | . 1 Max Gunslinging Chain 1 | . 1 Shots Hit Robots 138 | . 138 Core Hits 54 | . 54 Critical Kills . | . . Critical Parts Destroyed . | . . Critical Strikes 2 | . 2 Burn 2 | . 2 Melee Attacks . | . . Impact . | . . Slashing . | . . Piercing . | . . Sneak Attacks . | . . Combat Hostiles . | . . Follow-up Attacks . | . . Damage Inflicted 1676 | . 1676 Guns 1676 | . 1676 Cannons . | . . Explosions . | . . Melee . | . . Ramming . | . . Kinetic 609 | . 609 Thermal 1067 | . 1067 Explosive . | . . Electromagnetic . | . . Impact . | . . Slashing . | . . Piercing . | . . Highest Corruption . | . . Average Corruption . | . . Corruption Purged . | . . Corruption Blocked . | . . Overload Shots . | . . Overflow Damage . | . . Projectiles . | . . Explosions . | . . Melee . | . . Knockbacks . | . . Impact . | . . Kinetic . | . . Secondary . | . . Self-Inflicted Damage . | . . Shots . | . . Rammed . | . . Targets Rammed . | . . Kicked . | . . Crushed . | . . Highest Temperature 308 | . 308 Average Temperature 83 | . 83 Received Heat Transfer 435 | . 435 Effects 1 | . 1 Energy Bleed 1 | . 1 Siege Activations . | . . Robots Corrupted . | . . Combat Hostiles . | . . Parts Fried . | . . Impact Corruptions . | . . Robots Melted 1 | . 1 Combat Hostiles . | . . Parts Melted 7 | . 7 Heat Transferred 2986 | . 2986 Parts Sabotaged . | . . Parts Stolen . | . . Parts Stripped . | . . Power Chain Reactions . | . . Alert | -11 -10 ------- Run | Yrd Mat Peak Influence 317 | . 317 Initial . | . . Average 173 | . 184 Maximum Alert Level 1 | . 1 Low Security (%) 54 | 100 51 Level 1 45 | . 48 Level 2 . | . . Level 3 . | . . Level 4 . | . . Level 5 . | . . High Security . | . . Max Security . | . . Squads Dispatched 2 | . 2 Investigation 1 | . 1 Extermination . | . . Reinforcement 1 | . 1 Assault . | . . Garrison . | . . Intercept . | . . Searches Triggered . | . . Construction Impeded . | . . Haulers Reinforced . | . . Active Scanning Responses . | . . Cargo Convoy Interrupts . | . . Stealth | -11 -10 --------- Run | Yrd Mat Distress Signals 2 | . 2 Communications Jammed . | . . Distress Signals . | . . Times Spotted 32 | . 32 Peak Tracking Total 5 | . 5 Tactical Retreats . | . . Traps | -11 -10 ------- Run | Yrd Mat Traps Triggered 2 | . 2 Indirectly . | . . Trap Hack Attempts . | . . Triggered . | . . Disarmed . | . . Reprogrammed . | . . Reused . | . . Traps Extracted . | . . Installed . | . . Triggered . | . . Machines | -11 -10 ---------- Run | Yrd Mat Machines Disabled . | . . Max in Single Turn . | . . Machines Repaired . | . . Machines Dismantled . | . . Machines Sabotaged . | . . Overloaded Fab Kills . | . . Hacking | -11 -10 --------- Run | Yrd Mat Machines Accessed 2 | . 2 Terminals 1 | . 1 Fabricators . | . . Repair Stations . | . . Recycling Units 1 | . 1 Scanalyzers . | . . Garrison Access . | . . Total Hacks 4 | . 4 Successful 2 | . 2 Failed 2 | . 2 Catastrophic . | . . Database Lockouts . | . . Manual . | . . Terminals 3 | . 3 Fabricators . | . . Repair Stations . | . . Recycling Units 1 | . 1 Scanalyzers . | . . Garrison Access . | . . Terminal Hacks 1 | . 1 Zone Layout 1 | . 1 Fabricator Hacks . | . . Repair Station Hacks . | . . Recycling Unit Hacks 1 | . 1 Report Inventory 1 | . 1 Scanalyzer . | . . Garrison Access Hacks . | . . Unauthorized Hacks . | . . Terminals . | . . Fabricators . | . . Repair Stations . | . . Recycling Units . | . . Scanalyzers . | . . Garrison Access . | . . Data Cores Recovered . | . . Used . | . . Hacking Detections 1 | . 1 Full Trace Events . | . . Feedback Events . | . . Feedback Blocked . | . . Robot Schematics Acquired . | . . Robots Built . | . . Authchips . | . . Time . | . . Total Robot Build Rating . | . . Part Schematics Acquired . | . . Parts Built . | . . Authchips . | . . Time . | . . Total Part Build Rating . | . . Parts Repaired . | . . Time . | . . Parts Recycled . | . . Recycled Matter . | . . Retrieved Matter . | . . Retrieved Components . | . . Parts Scanalyzed . | . . Part Schematics Acquired . | . . Parts Damaged . | . . Bothacking | -11 -10 ------------ Run | Yrd Mat Used RIF Installer . | . . Robots Hacked . | . . Non-combat . | . . Combat . | . . Robot Hacks Applied . | . . Relay Couplers Released . | . . Fabnet Peak Effective % . | . . Robots Rewired . | . . Allies Hacked . | . . Hacks Repelled . | . . Allies | -11 -10 -------- Run | Yrd Mat Total Allies . | . . Largest Group . | . . Highest-Rated Group . | . . Highest-Rated Ally . | . . Total Orders . | . . Ally Attacks . | . . Total Damage . | . . Kills . | . . Allies Corrupted . | . . Allies Melted . | . . Intel | -11 -10 ------- Run | Yrd Mat Robot Analysis Total . | . . Derelict Logs Recovered . | . . Drone Launches . | . . Drone Recoveries . | . . Exploration | -11 -10 ------------- Run | Yrd Mat Turns Passed 993 | 63 930 Spaces Moved 558 | 63 495 Core 5 | 5 . Treads 89 | . 89 Legs 162 | . 162 Wheels 137 | 58 79 Hover . | . . Flight 165 | . 165 Fastest Speed 37 | 50 37 Average Speed 91 | 77 93 Slowest Speed 160 | 80 160 Overloaded Moves . | . . Propulsion Burnouts . | . . Robots Hopped 1 | . 1 Cave-ins Triggered . | . . Exploration Rate (%) 21 | 4 39 Regions Visited 1 Branch Regions . Pre-discovered Areas . | . . Known Exits Taken . | . . Unknown Exits Taken 1 | 1 . Scrap Searched . | . . Spaces Dug . | . . Terrain Destroyed . | . . Melee . | . . Projectile . | . . AOE . | . . Terrain Rammed . | . . Walls Destroyed . | . . Machines Disabled . | . . Actions | -11 -10 --------- Run | Yrd Mat Total 822 | 73 749 Wait 100 | . 100 Move 555 | 62 493 Hop 1 | . 1 Pick Up 14 | 4 10 Fast Attach 13 | 6 7 Attach 6 | . 6 Detach 2 | . 2 Swap 4 | 1 3 Drop 16 | . 16 Fire 111 | . 111 Melee . | . . Ram . | . . Kick . | . . Crush . | . . Escape Stasis . | . . Rewire . | . . Trap . | . . Miscellaneous . | . . Route ------- -11/Scrapyard -10/Materials History --------- Turn | Location | Event 18 | -11/Scrapyard | Discovered new exit (range 16) 64 | -11/Scrapyard | Entered Materials 316 | -10/Materials | Build established: Mutant 328 | -10/Materials | Core integrity fell below 50% 430 | -10/Materials | Core integrity fell below 20% 916 | -10/Materials | Build established: Scavenger-Mutant 994 | -10/Materials | Destroyed by EMP Trap Last Messages --------------- recycling unit. 00845_ Acquired 2 matter. 00847_ K-01 Serf cleans the Electrolysis Chamber. 00848_ R-06 Scavenger collects Med. Battery. 00852_ R-06 Scavenger collects Hcp. Matter Pod. 00855_ R-06 Scavenger collects Med. Battery. 00859_ R-06 Scavenger collects Hcp. Matter Pod. 00862_ K-01 Serf cleans the Terminal. 00871_ R-06 Scavenger inserts Med. Battery into recycling unit. 00893_ G-34 Mercenary destroyed. 00905_ K-01 Serf collects debris. 00924_ G-34 Mercenary suffers critical hit (Burn). 00924_ G-34 Mercenary destroyed. 00927_ K-01 Serf destroyed. 00994_ Triggered EMP Trap. 00994_ A bubble of electromagnetic force engulfs the area. Map ----- +----------------------------------------------------+ | | | | | | | ?????????????????????????????????????????????????? | | ?????????????????????????????????????????????????? | | ?????????????????????????????????????????????????? | | ?????????????????????????????????????????????????? | | ?????????????????????????????????????????????????? | | ?????????????????????????????????????????????????? | | ?????????????????????????????????????????????????? | | ?????????????????????????????????????????????????? | | ?????????????????????????????????????????????????? | | ?????????????????????????????????????????????????? | | ?????????????????????????????????????????????????? | | ?????????????????????????????????????????????????? | | ?????????????????????????????????????????????????? | | ?????????????????????????????????????????????????? | | ?????????????????????????????????????????????????? | | ?????????????????????????????????????????????????? | | ???????????????????????????????#?????????????????? | | ?????????????????????????????? #?????????????????? | | ????????????????????????????? #?????????????????? | | ???????????????????????????? #??????????####???? | | ?????????????############### #??????????# ???? | | ??????????" ## #??????????# ???? | | ?????????? + @ #??????????# ???? | | ?????????? ## #??????????# ???? | | ?????????? ## #######+################?# #??? | | ?????????? ## #?# | # ?+ #??? | | ?????????? ## #?# """ # "T"?# #??? | | ??????????#### #?# """"" # ?# #??? | | ?????????????# ### """"" # ?# *%#??? | | ?????????????# + """"" # ?# !!#??? | | ?????????????# ### """ # ?# =%#??? | | ?????????????# #?# ############?# =#??? | | ?????????????# #?# ! #########???## ##?? | | ## ######### #?############ #???# #?? | | ########?????#= #???# T" #?? | | =###???#=! #???# " #?? | | %=#T#####[= #???# |#?? | | ####### ###### =!%% **%+%=* #???# #?? | | ??????#??????###########! !*%#=[[! #???##### #?? | | ??????????????# # %!=#+##+###########=#?? | | ??????????????# """ # *% %= * =*#?? | | ??????????????# """"" + %=% * ! ==!#?? | | ??????????????# """"" # ![ = """ ""! #?? | | ??????????????# """"" # ##+###### """ Y"!%#?? | | ??????????????# """ # #= ! ## """ ""!!#?? | | ??????????????# #* # ## !#?? | | ??????????????# #% # ## ### | +----------------------------------------------------+ Best States ------------- Heat Dissipation 35 Energy Generation 14 Energy Capacity 250 Matter Stores 300 Matter Capacity 300 Sight Range 16 Terrain Scan Density 10 Evasion (%) 62 Recoil Reduction 1 Item Schematics ----------------- None Robot Schematics ------------------ None Fabricated ------------ Nothing Alien Tech Used ----------------- None Achievements -------------- None Challenges ------------ None Game ------ Seed HugeShadingSink Manual? 0 Play Time 00:12:26 Cumulative 9.7 hours Start 2025.01.14 @ 14:42:08 End 2025.01.14 @ 14:52:41 Sessions 1 Manual Loads 0 Difficulty Rogue Special Mode None Game No. 14 Rogue 12 Adventurer 2 Explorer 0 Win Type - Total 0 Types 0/0/0/0/0/0/0/0/0 Lore% 5 Gallery% 18 Achievement% 15 Wizard Run 0 Options --------- Layout 1 ASCII 0 Keyboard 0 Movement Arrows Keybinds 0 Fullscreen 1 Font 32/SmallcapsGlow Map View 50x35 Zoom Use 0% Tactical HUD 1 Map Filters NONE Filters NONE Steam 1 RUN: ede540d5-686e-496a-b4c4-342f0534838d